[Event "Titled Tuesday Blitz April 05 Late 2022"]
[White "Silvestre, Christian"]
[Black "Araujo Filho, Luiz Antonio Coel"]
[WhiteFideId "30956269"]
[BlackFideId "2130661"]
[WhiteElo "2389"]
[BlackElo "2277"]
[Result "1-0"]
[Round "11"]
[TimeControl "180+1"]
[Date "2022.04.06"]
[WhiteClock "0:00:15"]
[BlackClock "0:00:10"]

1. Nf3 {[%clk 0:02:58]}  f5 {[%clk 0:02:59]} 2. g3 {[%clk 0:02:58]}  Nf6 {[%clk 0:02:59]} 3. Bg2 {[%clk 0:02:58]}  g6 {[%clk 0:03:00]} 4. O-O {[%clk 0:02:57]}  Bg7 {[%clk 0:03:00]} 5. d3 {[%clk 0:02:58]}  O-O {[%clk 0:03:01]} 6. c4 {[%clk 0:02:48]}  d6 {[%clk 0:03:01]} 7. Nc3 {[%clk 0:02:47]}  e5 {[%clk 0:03:01]} 8. e4 {[%clk 0:02:44]}  Nc6 {[%clk 0:02:58]} 9. Re1 {[%clk 0:02:39]}  h6 {[%clk 0:02:50]} 10. Rb1 {[%clk 0:02:38]}  g5 {[%clk 0:02:50]} 11. exf5 {[%clk 0:02:33]}  Bxf5 {[%clk 0:02:51]} 12. Nd5 {[%clk 0:02:19]}  Bg4 {[%clk 0:02:47]} 13. Ne3 {[%clk 0:02:17]}  Bh5 {[%clk 0:02:46]} 14. h3 {[%clk 0:02:04]}  g4 {[%clk 0:02:35]} 15. hxg4 {[%clk 0:01:50]}  Nxg4 {[%clk 0:02:35]} 16. Nh2 {[%clk 0:01:39]}  Nf6 {[%clk 0:02:22]} 17. Qb3 {[%clk 0:01:34]}  Rb8 {[%clk 0:02:15]} 18. c5+ {[%clk 0:01:28]}  Kh8 {[%clk 0:02:08]} 19. cxd6 {[%clk 0:01:26]}  cxd6 {[%clk 0:02:09]} 20. Nf5 {[%clk 0:01:23]}  Qd7 {[%clk 0:01:53]} 21. Nxg7 {[%clk 0:01:04]}  Qxg7 {[%clk 0:01:53]} 22. Be3 {[%clk 0:01:01]}  Ng4 {[%clk 0:01:34]} 23. Nxg4 {[%clk 0:00:58]}  Bxg4 {[%clk 0:01:34]} 24. Kh2 {[%clk 0:00:44]}  Bf3 {[%clk 0:01:22]} 25. Rh1 {[%clk 0:00:40]}  Rf6 {[%clk 0:00:49]} 26. Bxf3 {[%clk 0:00:37]}  Rxf3 {[%clk 0:00:49]} 27. Kg2 {[%clk 0:00:37]}  Rf6 {[%clk 0:00:50]} 28. Bxh6 {[%clk 0:00:31]}  Rxh6 {[%clk 0:00:19]} 29. Rxh6+ {[%clk 0:00:32]}  Qxh6 {[%clk 0:00:16]} 30. Rh1 {[%clk 0:00:32]}  Qxh1+ {[%clk 0:00:16]} 31. Kxh1 {[%clk 0:00:33]}  Kg7 {[%clk 0:00:16]} 32. Qe6 {[%clk 0:00:31]}  Rd8 {[%clk 0:00:15]} 33. Qg4+ {[%clk 0:00:29]}  Kf6 {[%clk 0:00:15]} 34. Qh4+ {[%clk 0:00:28]}  Ke6 {[%clk 0:00:16]} 35. Qh6+ {[%clk 0:00:26]}  Kd5 {[%clk 0:00:16]} 36. g4 {[%clk 0:00:25]}  Kd4 {[%clk 0:00:12]} 37. Qe3+ {[%clk 0:00:23]}  Kd5 {[%clk 0:00:13]} 38. g5 {[%clk 0:00:24]}  Rg8 {[%clk 0:00:12]} 39. Qe4+ {[%clk 0:00:23]}  Ke6 {[%clk 0:00:12]} 40. Qg4+ {[%clk 0:00:20]}  Kd5 {[%clk 0:00:10]} 41. Qc4# {[%clk 0:00:15]} 1-0


[Site "https://www.chess.com"]

[Event "Titled Tuesday Blitz April 05 Late 2022"]
[White "Soysal, Serkan"]
[Black "Rytenko, Vsevolod"]
[WhiteFideId "6349250"]
[BlackFideId "14133040"]
[WhiteElo "2440"]
[BlackElo "2120"]
[Result "1-0"]
[Round "11"]
[TimeControl "180+1"]
[Date "2022.04.05"]
[WhiteClock "0:00:05"]
[BlackClock "0:00:40"]

1. d4 {[%clk 0:03:00]}  Nf6 {[%clk 0:02:52]} 2. c4 {[%clk 0:02:59]}  g6 {[%clk 0:02:53]} 3. f3 {[%clk 0:02:57]}  Bg7 {[%clk 0:02:51]} 4. e4 {[%clk 0:02:57]}  O-O {[%clk 0:02:52]} 5. Be3 {[%clk 0:02:57]}  d6 {[%clk 0:02:51]} 6. Ne2 {[%clk 0:02:57]}  c6 {[%clk 0:02:52]} 7. Qd2 {[%clk 0:02:53]}  a6 {[%clk 0:02:52]} 8. c5 {[%clk 0:02:48]}  Nbd7 {[%clk 0:02:51]} 9. Nbc3 {[%clk 0:02:39]}  b6 {[%clk 0:02:50]} 10. cxd6 {[%clk 0:02:35]}  exd6 {[%clk 0:02:50]} 11. Ng3 {[%clk 0:02:19]}  b5 {[%clk 0:02:50]} 12. Be2 {[%clk 0:02:13]}  Nb6 {[%clk 0:02:47]} 13. O-O {[%clk 0:02:09]}  b4 {[%clk 0:02:38]} 14. Nd1 {[%clk 0:02:07]}  a5 {[%clk 0:02:38]} 15. Rc1 {[%clk 0:02:04]}  Bb7 {[%clk 0:02:30]} 16. Nf2 {[%clk 0:01:59]}  d5 {[%clk 0:02:26]} 17. e5 {[%clk 0:01:56]}  Ne8 {[%clk 0:02:26]} 18. b3 {[%clk 0:01:47]}  f6 {[%clk 0:02:20]} 19. f4 {[%clk 0:01:44]}  f5 {[%clk 0:02:18]} 20. Nd3 {[%clk 0:01:36]}  Nc7 {[%clk 0:02:12]} 21. Nc5 {[%clk 0:01:36]}  Bc8 {[%clk 0:02:08]} 22. Ra1 {[%clk 0:01:30]}  Nd7 {[%clk 0:01:59]} 23. Nxd7 {[%clk 0:01:23]}  Qxd7 {[%clk 0:01:57]} 24. a3 {[%clk 0:01:24]}  Rb8 {[%clk 0:01:51]} 25. axb4 {[%clk 0:01:20]}  axb4 {[%clk 0:01:51]} 26. Ra7 {[%clk 0:01:11]}  Qd8 {[%clk 0:01:49]} 27. Rc1 {[%clk 0:01:07]}  Bb7 {[%clk 0:01:36]} 28. Qxb4 {[%clk 0:00:50]}  Ba6 {[%clk 0:01:35]} 29. Qa5 {[%clk 0:00:41]}  Bxe2 {[%clk 0:01:35]} 30. Nxe2 {[%clk 0:00:38]}  Nb5 {[%clk 0:01:32]} 31. Qxd8 {[%clk 0:00:32]}  Rfxd8 {[%clk 0:01:33]} 32. Ra6 {[%clk 0:00:30]}  Nc7 {[%clk 0:01:22]} 33. Raxc6 {[%clk 0:00:30]}  Rxb3 {[%clk 0:01:22]} 34. Rxc7 {[%clk 0:00:26]}  Rxe3 {[%clk 0:01:22]} 35. Kf2 {[%clk 0:00:24]}  Rb3 {[%clk 0:01:21]} 36. Rc8 {[%clk 0:00:24]}  Rb8 {[%clk 0:01:21]} 37. Rxb8 {[%clk 0:00:23]}  Rxb8 {[%clk 0:01:22]} 38. Rc5 {[%clk 0:00:23]}  Rd8 {[%clk 0:01:13]} 39. Nc3 {[%clk 0:00:22]}  Bf8 {[%clk 0:01:14]} 40. Rxd5 {[%clk 0:00:21]}  Rc8 {[%clk 0:01:14]} 41. Ne2 {[%clk 0:00:21]}  Rc2 {[%clk 0:01:14]} 42. Rd7 {[%clk 0:00:21]}  Bb4 {[%clk 0:01:05]} 43. Rb7 {[%clk 0:00:18]}  Bc3 {[%clk 0:01:03]} 44. Ke3 {[%clk 0:00:14]}  Ba5 {[%clk 0:00:56]} 45. e6 {[%clk 0:00:13]}  Kf8 {[%clk 0:00:56]} 46. Rxh7 {[%clk 0:00:12]}  Ra2 {[%clk 0:00:53]} 47. Rf7+ {[%clk 0:00:12]}  Ke8 {[%clk 0:00:52]} 48. Rb7 {[%clk 0:00:11]}  Be1 {[%clk 0:00:50]} 49. d5 {[%clk 0:00:10]}  Ra3+ {[%clk 0:00:51]} 50. Kd4 {[%clk 0:00:10]}  Bf2+ {[%clk 0:00:49]} 51. Kc4 {[%clk 0:00:09]}  Re3 {[%clk 0:00:48]} 52. Nc3 {[%clk 0:00:09]}  Be1 {[%clk 0:00:48]} 53. Nb5 {[%clk 0:00:09]}  Re4+ {[%clk 0:00:49]} 54. Kd3 {[%clk 0:00:09]}  Bb4 {[%clk 0:00:44]} 55. g3 {[%clk 0:00:06]}  Bc5 {[%clk 0:00:44]} 56. d6 {[%clk 0:00:05]}  Rxe6 {[%clk 0:00:37]} 57. Nc7+ {[%clk 0:00:05]}  Kd7 {[%clk 0:00:38]} 58. Nxe6+ {[%clk 0:00:06]}  Kxe6 {[%clk 0:00:39]} 59. Rg7 {[%clk 0:00:06]}  Kf6 {[%clk 0:00:39]} 60. d7 {[%clk 0:00:06]}  Bb6 {[%clk 0:00:40]} 61. Rg8 {[%clk 0:00:06]}  Ke7 {[%clk 0:00:40]} 62. Rxg6 {[%clk 0:00:05]} 1-0


[Site "https://www.chess.com"]

[Event "Titled Tuesday Blitz April 05 Late 2022"]
[White "Swicarz, Maciej"]
[Black "Curtis, John"]
[WhiteFideId "1113585"]
[BlackFideId "3200256"]
[WhiteElo "2501"]
[BlackElo "2171"]
[Result "1-0"]
[Round "11"]
[TimeControl "180+1"]
[Date "2022.04.06"]
[WhiteClock "0:00:30"]
[BlackClock "0:00:07"]

1. c4 {[%clk 0:02:46]}  Nf6 {[%clk 0:02:59]} 2. Nc3 {[%clk 0:02:44]}  e5 {[%clk 0:02:59]} 3. Nf3 {[%clk 0:02:44]}  Nc6 {[%clk 0:02:55]} 4. e4 {[%clk 0:02:43]}  d6 {[%clk 0:02:47]} 5. d4 {[%clk 0:02:41]}  Bg4 {[%clk 0:02:45]} 6. d5 {[%clk 0:02:41]}  Bxf3 {[%clk 0:02:44]} 7. gxf3 {[%clk 0:02:38]}  Nd4 {[%clk 0:02:44]} 8. f4 {[%clk 0:02:38]}  c5 {[%clk 0:02:44]} 9. dxc6 {[%clk 0:02:36]}  bxc6 {[%clk 0:02:45]} 10. f5 {[%clk 0:02:33]}  g6 {[%clk 0:02:33]} 11. fxg6 {[%clk 0:02:26]}  hxg6 {[%clk 0:02:27]} 12. Be3 {[%clk 0:02:25]}  c5 {[%clk 0:02:23]} 13. Bg5 {[%clk 0:02:25]}  Be7 {[%clk 0:02:20]} 14. Bd3 {[%clk 0:02:18]}  Rb8 {[%clk 0:02:12]} 15. b3 {[%clk 0:02:14]}  Nh5 {[%clk 0:02:03]} 16. Bxe7 {[%clk 0:02:04]}  Qxe7 {[%clk 0:01:58]} 17. Nd5 {[%clk 0:02:05]}  Qh4 {[%clk 0:01:55]} 18. h3 {[%clk 0:01:53]}  Nf4 {[%clk 0:01:49]} 19. Nxf4 {[%clk 0:01:42]}  Qxf4 {[%clk 0:01:28]} 20. Kf1 {[%clk 0:01:42]}  Rh4 {[%clk 0:01:26]} 21. Rc1 {[%clk 0:01:25]}  Ke7 {[%clk 0:01:19]} 22. Rc3 {[%clk 0:01:25]}  Rbh8 {[%clk 0:01:17]} 23. Bb1 {[%clk 0:01:24]}  g5 {[%clk 0:01:13]} 24. Rg3 {[%clk 0:01:22]}  R8h6 {[%clk 0:01:12]} 25. Kg2 {[%clk 0:01:10]}  Kf8 {[%clk 0:00:47]} 26. Re1 {[%clk 0:01:04]}  Rf6 {[%clk 0:00:40]} 27. Rf1 {[%clk 0:01:04]}  a5 {[%clk 0:00:35]} 28. Qe1 {[%clk 0:01:00]}  g4 {[%clk 0:00:30]} 29. Qxa5 {[%clk 0:00:51]}  Rfh6 {[%clk 0:00:20]} 30. Qd8+ {[%clk 0:00:39]}  Kg7 {[%clk 0:00:19]} 31. Rh1 {[%clk 0:00:33]}  Rf6 {[%clk 0:00:12]} 32. Rf1 {[%clk 0:00:33]}  Rfh6 {[%clk 0:00:07]} 33. f3 {[%clk 0:00:30]} 1-0


[Site "https://www.chess.com"]

[Event "Titled Tuesday Blitz April 05 Late 2022"]
[White "Tristan, Leonardo"]
[Black "Jumabayev, Rinat"]
[WhiteFideId "113816"]
[BlackFideId "13702661"]
[WhiteElo "2404"]
[BlackElo "2561"]
[Result "0-1"]
[Round "11"]
[TimeControl "180+1"]
[Date "2022.04.05"]
[WhiteClock "0:00:04"]
[BlackClock "0:00:06"]

1. d4 {[%clk 0:03:00]}  Nf6 {[%clk 0:02:59]} 2. Nf3 {[%clk 0:03:01]}  e6 {[%clk 0:03:00]} 3. Bf4 {[%clk 0:03:01]}  b6 {[%clk 0:03:00]} 4. e3 {[%clk 0:03:01]}  Bb7 {[%clk 0:03:01]} 5. Nbd2 {[%clk 0:03:02]}  Nh5 {[%clk 0:03:01]} 6. Bg5 {[%clk 0:03:01]}  Be7 {[%clk 0:03:02]} 7. Bxe7 {[%clk 0:03:02]}  Qxe7 {[%clk 0:03:03]} 8. Bd3 {[%clk 0:02:59]}  d6 {[%clk 0:03:03]} 9. Qe2 {[%clk 0:02:54]}  a6 {[%clk 0:03:03]} 10. O-O-O {[%clk 0:02:51]}  Nf6 {[%clk 0:02:28]} 11. Kb1 {[%clk 0:02:50]}  Nbd7 {[%clk 0:02:26]} 12. e4 {[%clk 0:02:47]}  e5 {[%clk 0:02:26]} 13. c3 {[%clk 0:02:47]}  b5 {[%clk 0:02:22]} 14. Rhe1 {[%clk 0:02:14]}  O-O {[%clk 0:02:11]} 15. Nf1 {[%clk 0:02:02]}  g6 {[%clk 0:01:56]} 16. Ng3 {[%clk 0:02:00]}  c5 {[%clk 0:01:39]} 17. d5 {[%clk 0:01:50]}  c4 {[%clk 0:01:38]} 18. Bc2 {[%clk 0:01:50]}  Nc5 {[%clk 0:01:38]} 19. h4 {[%clk 0:01:47]}  h5 {[%clk 0:01:21]} 20. Ng5 {[%clk 0:01:47]}  a5 {[%clk 0:01:21]} 21. Qf1 {[%clk 0:01:43]}  b4 {[%clk 0:01:18]} 22. f4 {[%clk 0:01:41]}  bxc3 {[%clk 0:01:03]} 23. bxc3 {[%clk 0:01:41]}  exf4 {[%clk 0:00:56]} 24. Qxf4 {[%clk 0:01:41]}  Ng4 {[%clk 0:00:56]} 25. Nf3 {[%clk 0:01:04]}  Nd3 {[%clk 0:00:47]} 26. Bxd3 {[%clk 0:00:57]}  cxd3 {[%clk 0:00:48]} 27. Rxd3 {[%clk 0:00:40]}  Ba6 {[%clk 0:00:48]} 28. Rd2 {[%clk 0:00:40]}  Rab8+ {[%clk 0:00:47]} 29. Ka1 {[%clk 0:00:37]}  Qc7 {[%clk 0:00:47]} 30. Rc1 {[%clk 0:00:36]}  Bc4 {[%clk 0:00:34]} 31. Nf5 {[%clk 0:00:13]}  Qb6 {[%clk 0:00:08]} 32. Nxd6 {[%clk 0:00:04]}  Bd3 {[%clk 0:00:06]} 0-1


[Site "https://www.chess.com"]

[Event "Titled Tuesday Blitz April 05 Late 2022"]
[White "Villegas, Pierre"]
[Black "Sapunov, Evgeny"]
[WhiteFideId "654183"]
[BlackFideId "4126661"]
[WhiteElo "2386"]
[BlackElo "2470"]
[Result "0-1"]
[Round "11"]
[TimeControl "180+1"]
[Date "2022.04.05"]
[WhiteClock "0:00:17"]
[BlackClock "0:00:31"]

1. d4 {[%clk 0:02:39]}  Nf6 {[%clk 0:02:59]} 2. c4 {[%clk 0:02:39]}  g6 {[%clk 0:02:59]} 3. Nc3 {[%clk 0:02:39]}  Bg7 {[%clk 0:02:59]} 4. e4 {[%clk 0:02:39]}  O-O {[%clk 0:02:59]} 5. Nge2 {[%clk 0:02:39]}  d6 {[%clk 0:02:59]} 6. Ng3 {[%clk 0:02:39]}  Nc6 {[%clk 0:02:59]} 7. Be2 {[%clk 0:02:39]}  e5 {[%clk 0:02:59]} 8. d5 {[%clk 0:02:39]}  Nd4 {[%clk 0:02:59]} 9. Be3 {[%clk 0:02:39]}  c5 {[%clk 0:03:00]} 10. dxc6 {[%clk 0:02:37]}  bxc6 {[%clk 0:03:00]} 11. O-O {[%clk 0:02:37]}  c5 {[%clk 0:02:58]} 12. Qd2 {[%clk 0:02:35]}  Bb7 {[%clk 0:02:54]} 13. f3 {[%clk 0:02:35]}  h5 {[%clk 0:02:52]} 14. Bd3 {[%clk 0:02:33]}  h4 {[%clk 0:02:51]} 15. Nge2 {[%clk 0:02:34]}  Nh5 {[%clk 0:02:51]} 16. Bg5 {[%clk 0:02:31]}  Bf6 {[%clk 0:02:50]} 17. Bxf6 {[%clk 0:02:31]}  Qxf6 {[%clk 0:02:51]} 18. Nxd4 {[%clk 0:02:30]}  cxd4 {[%clk 0:02:48]} 19. Ne2 {[%clk 0:02:30]}  g5 {[%clk 0:02:46]} 20. b4 {[%clk 0:02:23]}  Rfc8 {[%clk 0:02:42]} 21. Rfc1 {[%clk 0:02:17]}  Rc7 {[%clk 0:02:43]} 22. c5 {[%clk 0:02:13]}  dxc5 {[%clk 0:02:37]} 23. Rxc5 {[%clk 0:02:14]}  Rxc5 {[%clk 0:02:36]} 24. bxc5 {[%clk 0:02:15]}  Rc8 {[%clk 0:02:36]} 25. Rc1 {[%clk 0:02:15]}  Ng7 {[%clk 0:02:20]} 26. Qb4 {[%clk 0:02:07]}  Qe7 {[%clk 0:02:06]} 27. Bc4 {[%clk 0:01:53]}  Bc6 {[%clk 0:01:48]} 28. Rc2 {[%clk 0:01:43]}  Ne6 {[%clk 0:01:43]} 29. Bxe6 {[%clk 0:01:33]}  Qxe6 {[%clk 0:01:43]} 30. Nc1 {[%clk 0:01:31]}  g4 {[%clk 0:01:39]} 31. Nd3 {[%clk 0:01:26]}  h3 {[%clk 0:01:33]} 32. Qe1 {[%clk 0:01:09]}  Bb5 {[%clk 0:01:19]} 33. Nb4 {[%clk 0:01:02]}  d3 {[%clk 0:01:14]} 34. Rd2 {[%clk 0:00:56]}  Rxc5 {[%clk 0:01:10]} 35. Nd5 {[%clk 0:00:55]}  Rxd5 {[%clk 0:01:06]} 36. exd5 {[%clk 0:00:55]}  Qxd5 {[%clk 0:01:07]} 37. gxh3 {[%clk 0:00:39]}  gxf3 {[%clk 0:01:04]} 38. Kf2 {[%clk 0:00:35]}  e4 {[%clk 0:00:48]} 39. Qe3 {[%clk 0:00:35]}  a6 {[%clk 0:00:45]} 40. h4 {[%clk 0:00:35]}  f6 {[%clk 0:00:43]} 41. Rd1 {[%clk 0:00:34]}  Kf7 {[%clk 0:00:43]} 42. Qa7+ {[%clk 0:00:32]}  Ke6 {[%clk 0:00:42]} 43. Qb6+ {[%clk 0:00:31]}  Kf5 {[%clk 0:00:42]} 44. Rd2 {[%clk 0:00:28]}  Qe5 {[%clk 0:00:37]} 45. Qd8 {[%clk 0:00:16]}  Qxh2+ {[%clk 0:00:32]} 46. Ke3 {[%clk 0:00:17]}  Qf4+ {[%clk 0:00:32]} 47. Kd4 {[%clk 0:00:17]}  e3+ {[%clk 0:00:31]} 0-1


[Site "https://www.chess.com"]

[Event "Titled Tuesday Blitz April 05 Late 2022"]
[White "Xiong, Jeffery"]
[Black "Kollars, Dmitrij"]
[WhiteFideId "2047640"]
[BlackFideId "12909572"]
[WhiteElo "2727"]
[BlackElo "2584"]
[Result "1-0"]
[Round "11"]
[TimeControl "180+1"]
[Date "2022.04.05"]
[WhiteClock "0:00:54"]
[BlackClock "0:00:02"]

1. e4 {[%clk 0:03:00]}  c5 {[%clk 0:02:57]} 2. Nf3 {[%clk 0:03:01]}  d6 {[%clk 0:02:57]} 3. Nc3 {[%clk 0:03:01]}  Nf6 {[%clk 0:02:57]} 4. d4 {[%clk 0:03:02]}  cxd4 {[%clk 0:02:58]} 5. Qxd4 {[%clk 0:03:02]}  Nc6 {[%clk 0:02:55]} 6. Qd3 {[%clk 0:03:03]}  g6 {[%clk 0:02:53]} 7. Nd5 {[%clk 0:03:03]}  Bg7 {[%clk 0:02:53]} 8. c3 {[%clk 0:03:04]}  O-O {[%clk 0:02:53]} 9. Bg5 {[%clk 0:03:04]}  Nxd5 {[%clk 0:02:52]} 10. exd5 {[%clk 0:03:05]}  Ne5 {[%clk 0:02:50]} 11. Nxe5 {[%clk 0:03:05]}  Bxe5 {[%clk 0:02:51]} 12. Be2 {[%clk 0:03:06]}  Bf6 {[%clk 0:02:39]} 13. h4 {[%clk 0:03:03]}  Qb6 {[%clk 0:02:37]} 14. Qd2 {[%clk 0:02:59]}  h5 {[%clk 0:02:04]} 15. O-O {[%clk 0:02:57]}  Bf5 {[%clk 0:01:57]} 16. Rfe1 {[%clk 0:02:56]}  Rfe8 {[%clk 0:01:56]} 17. Bf3 {[%clk 0:02:53]}  Kg7 {[%clk 0:01:54]} 18. Re2 {[%clk 0:02:53]}  Qc7 {[%clk 0:01:23]} 19. Rae1 {[%clk 0:02:52]}  Qd7 {[%clk 0:01:21]} 20. Qf4 {[%clk 0:02:50]}  Rac8 {[%clk 0:01:16]} 21. Qg3 {[%clk 0:02:49]}  Kh7 {[%clk 0:01:15]} 22. Qf4 {[%clk 0:02:35]}  Be5 {[%clk 0:01:13]} 23. Qd2 {[%clk 0:02:20]}  Rc4 {[%clk 0:01:11]} 24. Be4 {[%clk 0:02:10]}  b5 {[%clk 0:01:07]} 25. f4 {[%clk 0:02:04]}  Bf6 {[%clk 0:01:01]} 26. Bf3 {[%clk 0:01:49]}  Bxg5 {[%clk 0:00:47]} 27. hxg5 {[%clk 0:01:50]}  e6 {[%clk 0:00:43]} 28. dxe6 {[%clk 0:01:45]}  fxe6 {[%clk 0:00:44]} 29. b3 {[%clk 0:01:11]}  Rc5 {[%clk 0:00:43]} 30. Qd4 {[%clk 0:01:11]}  Qc7 {[%clk 0:00:41]} 31. g4 {[%clk 0:01:10]}  e5 {[%clk 0:00:37]} 32. gxf5 {[%clk 0:01:03]}  Rxc3 {[%clk 0:00:25]} 33. fxg6+ {[%clk 0:01:01]}  Kg7 {[%clk 0:00:07]} 34. fxe5 {[%clk 0:01:01]}  d5 {[%clk 0:00:06]} 35. Bxd5 {[%clk 0:00:55]}  Rg3+ {[%clk 0:00:05]} 36. Rg2 {[%clk 0:00:53]}  Rxg2+ {[%clk 0:00:02]} 37. Bxg2 {[%clk 0:00:54]} 1-0


[Site "https://www.chess.com"]

[Event "Titled Tuesday Blitz April 05 Late 2022"]
[White "Zhou, Qiyu"]
[Black "Cagara, Paulina"]
[WhiteFideId "505161"]
[BlackFideId "1124870"]
[WhiteElo "1925"]
[BlackElo "1780"]
[Result "0-1"]
[Round "11"]
[TimeControl "180+1"]
[Date "2022.04.06"]
[WhiteClock "0:00:03"]
[BlackClock "0:00:42"]

1. e4 {[%clk 0:03:00]}  c6 {[%clk 0:02:59]} 2. d4 {[%clk 0:03:01]}  d5 {[%clk 0:02:59]} 3. e5 {[%clk 0:03:01]}  c5 {[%clk 0:02:59]} 4. dxc5 {[%clk 0:03:01]}  e6 {[%clk 0:02:57]} 5. Be3 {[%clk 0:02:59]}  Nd7 {[%clk 0:02:56]} 6. Bb5 {[%clk 0:02:56]}  Qc7 {[%clk 0:02:55]} 7. Nf3 {[%clk 0:02:55]}  Bxc5 {[%clk 0:02:53]} 8. Bxc5 {[%clk 0:02:49]}  Qxc5 {[%clk 0:02:53]} 9. Bxd7+ {[%clk 0:02:50]}  Bxd7 {[%clk 0:02:52]} 10. O-O {[%clk 0:02:50]}  Ne7 {[%clk 0:02:49]} 11. c3 {[%clk 0:02:49]}  Ng6 {[%clk 0:02:48]} 12. Nbd2 {[%clk 0:02:47]}  O-O {[%clk 0:02:47]} 13. Nb3 {[%clk 0:02:46]}  Qc7 {[%clk 0:02:46]} 14. Re1 {[%clk 0:02:47]}  Rac8 {[%clk 0:02:37]} 15. Nbd4 {[%clk 0:02:47]}  a6 {[%clk 0:02:36]} 16. Qd2 {[%clk 0:02:44]}  b5 {[%clk 0:02:34]} 17. Qg5 {[%clk 0:02:35]}  a5 {[%clk 0:02:29]} 18. h4 {[%clk 0:02:29]}  Qd8 {[%clk 0:02:27]} 19. Qg4 {[%clk 0:02:27]}  b4 {[%clk 0:02:20]} 20. h5 {[%clk 0:02:26]}  Ne7 {[%clk 0:02:18]} 21. h6 {[%clk 0:02:14]}  Ng6 {[%clk 0:02:16]} 22. hxg7 {[%clk 0:02:14]}  Kxg7 {[%clk 0:02:16]} 23. cxb4 {[%clk 0:02:05]}  axb4 {[%clk 0:02:15]} 24. Nh2 {[%clk 0:02:02]}  Qh4 {[%clk 0:02:12]} 25. Qd1 {[%clk 0:01:50]}  Rc4 {[%clk 0:02:10]} 26. Nhf3 {[%clk 0:01:46]}  Qg4 {[%clk 0:02:02]} 27. Rc1 {[%clk 0:01:31]}  Rfc8 {[%clk 0:01:49]} 28. Rxc4 {[%clk 0:01:28]}  Rxc4 {[%clk 0:01:48]} 29. Qd2 {[%clk 0:01:28]}  Nf4 {[%clk 0:01:47]} 30. g3 {[%clk 0:01:25]}  Nh3+ {[%clk 0:01:18]} 31. Kg2 {[%clk 0:01:23]}  h6 {[%clk 0:01:18]} 32. Rc1 {[%clk 0:00:56]}  Bc8 {[%clk 0:01:13]} 33. b3 {[%clk 0:00:51]}  Rxc1 {[%clk 0:01:04]} 34. Qxc1 {[%clk 0:00:52]}  Ba6 {[%clk 0:01:03]} 35. Qd2 {[%clk 0:00:44]}  Ng5 {[%clk 0:00:57]} 36. Nxg5 {[%clk 0:00:40]}  hxg5 {[%clk 0:00:58]} 37. f3 {[%clk 0:00:20]}  Qh5 {[%clk 0:00:58]} 38. Qxb4 {[%clk 0:00:19]}  g4 {[%clk 0:00:53]} 39. fxg4 {[%clk 0:00:07]}  Qxe5 {[%clk 0:00:52]} 40. Qd2 {[%clk 0:00:05]}  Qe4+ {[%clk 0:00:48]} 41. Kh3 {[%clk 0:00:03]}  Bf1+ {[%clk 0:00:46]} 42. Kh4 {[%clk 0:00:02]}  Qh1+ {[%clk 0:00:43]} 43. Kg5 {[%clk 0:00:03]}  f6+ {[%clk 0:00:43]} 44. Kf4 {[%clk 0:00:03]}  Qh6+ {[%clk 0:00:42]} 0-1